[Event "Late-Titled-Tuesday-Blitz-July-09-2024"]
[Site "Chess.com"]
[Date "2024.07.09"]
[Round "6"]
[White "Chigorinetz"]
[Black "Bauman_Guy"]
[Result "0-1"]
[WhiteElo "2613"]
[BlackElo "2921"]
[TimeControl "180+1"]
[EndTime "15:03:51 PDT"]
[Termination "Bauman_Guy won by resignation"]

1. e4 {[%clk 0:03:00.9]} 1... c5 {[%clk 0:03:00]} 2. Nc3 {[%clk 0:03:00.1]} 2...
d6 {[%clk 0:03:00.4]} 3. Nf3 {[%clk 0:02:59.6]} 3... g6 {[%clk 0:03:00.3]} 4. d4
{[%clk 0:02:58.5]} 4... cxd4 {[%clk 0:03:00.6]} 5. Nxd4 {[%clk 0:02:58.5]} 5...
Bg7 {[%clk 0:03:00.7]} 6. Be3 {[%clk 0:02:58.1]} 6... a6 {[%clk 0:03:01]} 7. f3
{[%clk 0:02:58.2]} 7... b5 {[%clk 0:03:01]} 8. Qd2 {[%clk 0:02:57.5]} 8... Bb7
{[%clk 0:02:59.2]} 9. O-O-O {[%clk 0:02:56.6]} 9... Nf6 {[%clk 0:02:57.3]} 10.
g4 {[%clk 0:02:56]} 10... h5 {[%clk 0:02:56.5]} 11. g5 {[%clk 0:02:51.5]} 11...
Nfd7 {[%clk 0:02:56.3]} 12. f4 {[%clk 0:02:44.9]} 12... Nc6 {[%clk 0:02:47.5]}
13. Nd5 {[%clk 0:02:18.4]} 13... O-O {[%clk 0:02:43.4]} 14. Nxc6 {[%clk
0:01:50.6]} 14... Bxc6 {[%clk 0:02:44.3]} 15. Bg2 {[%clk 0:01:49.7]} 15... Rc8
{[%clk 0:02:40.7]} 16. Kb1 {[%clk 0:01:47.9]} 16... a5 {[%clk 0:02:37.6]} 17.
Bd4 {[%clk 0:01:46.4]} 17... e5 {[%clk 0:02:32.9]} 18. fxe5 {[%clk 0:01:37.8]}
18... Bxd5 {[%clk 0:02:31.9]} 19. exd5 {[%clk 0:01:33.2]} 19... Bxe5 {[%clk
0:02:29.6]} 20. Bh3 {[%clk 0:01:27.5]} 20... Rc4 {[%clk 0:02:29.5]} 21. Bxe5
{[%clk 0:01:16.4]} 21... Nxe5 {[%clk 0:02:30.4]} 22. Rhf1 {[%clk 0:01:15.3]}
22... Rb4 {[%clk 0:01:58.1]} 23. b3 {[%clk 0:01:00.9]} 23... Rh4 {[%clk
0:01:29]} 24. Qg2 {[%clk 0:01:00.2]} 24... Qc7 {[%clk 0:01:24.3]} 25. Qg3 {[%clk
0:00:55.5]} 25... Rb4 {[%clk 0:01:23.4]} 26. Rf6 {[%clk 0:00:54.5]} 26... Re4
{[%clk 0:01:10.1]} 27. Rdf1 {[%clk 0:00:53.6]} 27... a4 {[%clk 0:00:51.2]} 28.
Be6 {[%clk 0:00:53.3]} 28... a3 {[%clk 0:00:46.8]} 29. R6f4 {[%clk 0:00:50.5]}
29... Rxf4 {[%clk 0:00:42.4]} 30. Qxf4 {[%clk 0:00:46.1]} 30... Qc3 {[%clk
0:00:40.9]} 31. Kc1 {[%clk 0:00:44.7]} 31... Nd3+ {[%clk 0:00:37.3]} 0-1

[Event "Late-Titled-Tuesday-Blitz-July-09-2024"]
[Site "Chess.com"]
[Date "2024.07.09"]
[Round "6"]
[White "djano"]
[Black "Fjal"]
[Result "1-0"]
[WhiteElo "2597"]
[BlackElo "2398"]
[TimeControl "180+1"]
[EndTime "15:04:03 PDT"]
[Termination "djano won by resignation"]

1. e4 {[%clk 0:02:56.2]} 1... d6 {[%clk 0:03:00.9]} 2. Nc3 {[%clk 0:02:54.9]}
2... g6 {[%clk 0:03:01.2]} 3. f4 {[%clk 0:02:55]} 3... Bg7 {[%clk 0:03:01.7]} 4.
Nf3 {[%clk 0:02:55.6]} 4... Nf6 {[%clk 0:03:00.8]} 5. Bc4 {[%clk 0:02:55.5]}
5... O-O {[%clk 0:03:01.1]} 6. Bb3 {[%clk 0:02:55.6]} 6... c6 {[%clk 0:03:01.3]}
7. O-O {[%clk 0:02:53.1]} 7... d5 {[%clk 0:03:01.4]} 8. Qe1 {[%clk 0:02:43.8]}
8... Na6 {[%clk 0:02:32.8]} 9. e5 {[%clk 0:02:40.9]} 9... Ne8 {[%clk 0:02:27.7]}
10. d4 {[%clk 0:02:39.3]} 10... Bg4 {[%clk 0:02:08.2]} 11. Be3 {[%clk
0:02:28.3]} 11... e6 {[%clk 0:01:53.9]} 12. Nd2 {[%clk 0:02:16.1]} 12... c5
{[%clk 0:01:53.8]} 13. h3 {[%clk 0:02:07.6]} 13... Bf5 {[%clk 0:01:53.8]} 14. g4
{[%clk 0:02:07.7]} 14... cxd4 {[%clk 0:01:50]} 15. Bxd4 {[%clk 0:02:08.6]} 15...
Be4 {[%clk 0:01:47.5]} 16. Ndxe4 {[%clk 0:02:06.8]} 16... dxe4 {[%clk
0:01:47.3]} 17. Qxe4 {[%clk 0:02:05.8]} 17... Nec7 {[%clk 0:01:43.3]} 18. Rad1
{[%clk 0:02:03.8]} 18... Qe7 {[%clk 0:01:42.6]} 19. Qxb7 {[%clk 0:01:56.7]}
19... Rfd8 {[%clk 0:01:32.8]} 20. g5 {[%clk 0:01:45.8]} 20... Nc5 {[%clk
0:01:29.7]} 21. Qc6 {[%clk 0:01:39.1]} 21... Nxb3 {[%clk 0:01:18.8]} 22. axb3
{[%clk 0:01:40]} 22... Rac8 {[%clk 0:01:19]} 23. Bc5 {[%clk 0:01:37.5]} 23...
Qe8 {[%clk 0:01:12.8]} 24. Qxe8+ {[%clk 0:01:37.3]} 24... Nxe8 {[%clk
0:01:12.3]} 25. Bxa7 {[%clk 0:01:36.3]} 25... Bf8 {[%clk 0:01:08.5]} 26. Rxd8
{[%clk 0:01:30.1]} 26... Rxd8 {[%clk 0:01:09.4]} 27. Rd1 {[%clk 0:01:30.3]}
27... Rc8 {[%clk 0:01:08.7]} 28. Kf2 {[%clk 0:01:14.8]} 28... Ng7 {[%clk
0:01:06.5]} 29. Ke2 {[%clk 0:01:08.7]} 29... Nf5 {[%clk 0:01:06.6]} 30. Rd7
{[%clk 0:01:04.5]} 30... Bb4 {[%clk 0:01:02.3]} 31. Kd3 {[%clk 0:01:03.4]} 31...
Kf8 {[%clk 0:01:01]} 32. Ne4 {[%clk 0:01:01.5]} 32... Ke8 {[%clk 0:01:00.1]} 33.
Nf6+ {[%clk 0:01:02]} 33... Kf8 {[%clk 0:00:59.6]} 34. c3 {[%clk 0:01:02.7]}
34... Be7 {[%clk 0:00:57.4]} 35. b4 {[%clk 0:01:01]} 35... Bxf6 {[%clk
0:00:52.4]} 36. gxf6 {[%clk 0:01:00.3]} 36... Ke8 {[%clk 0:00:51.3]} 37. Rb7
{[%clk 0:00:59.7]} 37... Rd8+ {[%clk 0:00:49.5]} 38. Bd4 {[%clk 0:00:56.1]}
38... Nh4 {[%clk 0:00:36.4]} 39. b5 {[%clk 0:00:55.4]} 39... Ng2 {[%clk
0:00:36.9]} 40. Ke4 {[%clk 0:00:53.8]} 1-0

[Event "Late-Titled-Tuesday-Blitz-July-09-2024"]
[Site "Chess.com"]
[Date "2024.07.09"]
[Round "6"]
[White "secretworker2027"]
[Black "mbojan"]
[Result "0-1"]
[WhiteElo "2709"]
[BlackElo "2921"]
[TimeControl "180+1"]
[EndTime "15:04:08 PDT"]
[Termination "mbojan won by resignation"]

1. e4 {[%clk 0:03:00.9]} 1... a6 {[%clk 0:02:57.4]} 2. d4 {[%clk 0:02:58.5]}
2... e6 {[%clk 0:02:57.3]} 3. Bd3 {[%clk 0:02:57.8]} 3... d5 {[%clk 0:02:57.5]}
4. e5 {[%clk 0:02:58]} 4... Bd7 {[%clk 0:02:57]} 5. a4 {[%clk 0:02:56.4]} 5...
c5 {[%clk 0:02:56.5]} 6. dxc5 {[%clk 0:02:54.1]} 6... Bxc5 {[%clk 0:02:57.2]} 7.
Nf3 {[%clk 0:02:54.3]} 7... Nc6 {[%clk 0:02:55.3]} 8. O-O {[%clk 0:02:54.3]}
8... f6 {[%clk 0:02:54.8]} 9. Bf4 {[%clk 0:02:52]} 9... fxe5 {[%clk 0:02:49.7]}
10. Nxe5 {[%clk 0:02:51.4]} 10... Nf6 {[%clk 0:02:49.5]} 11. Nd2 {[%clk
0:02:38.8]} 11... O-O {[%clk 0:02:48]} 12. Bg3 {[%clk 0:02:38.5]} 12... Be8
{[%clk 0:02:29.8]} 13. c4 {[%clk 0:02:14.2]} 13... Bh5 {[%clk 0:02:03.3]} 14.
Nxc6 {[%clk 0:02:10.1]} 14... bxc6 {[%clk 0:01:59.9]} 15. Qc2 {[%clk 0:02:09.8]}
15... Bb4 {[%clk 0:01:48.4]} 16. Nb3 {[%clk 0:02:01.6]} 16... Qe7 {[%clk
0:01:27.9]} 17. Nd4 {[%clk 0:01:54.2]} 17... Rac8 {[%clk 0:01:22.9]} 18. Rac1
{[%clk 0:01:44]} 18... c5 {[%clk 0:01:11.9]} 19. Ne2 {[%clk 0:01:34]} 19... d4
{[%clk 0:01:02.9]} 20. Nf4 {[%clk 0:01:32.9]} 20... Bf7 {[%clk 0:01:02.8]} 21.
Qe2 {[%clk 0:01:31.1]} 21... e5 {[%clk 0:00:59.6]} 22. Bf5 {[%clk 0:01:24.7]}
22... Rce8 {[%clk 0:00:38.4]} 23. Nd5 {[%clk 0:01:23.5]} 23... Nxd5 {[%clk
0:00:33.6]} 24. cxd5 {[%clk 0:01:24.4]} 24... Bxd5 {[%clk 0:00:34]} 25. Be4
{[%clk 0:01:20.6]} 25... Bxe4 {[%clk 0:00:34.1]} 26. Qxe4 {[%clk 0:01:21.5]}
26... Qe6 {[%clk 0:00:32.6]} 27. h4 {[%clk 0:01:08.2]} 27... h6 {[%clk
0:00:32.8]} 28. h5 {[%clk 0:01:07.1]} 28... Qf5 {[%clk 0:00:31.2]} 29. Qd5+
{[%clk 0:01:06]} 29... Kh7 {[%clk 0:00:31.5]} 30. Qc6 {[%clk 0:01:00.7]} 30...
Re6 {[%clk 0:00:31.9]} 31. Qd7 {[%clk 0:01:00.1]} 31... e4 {[%clk 0:00:29.5]}
32. Rc2 {[%clk 0:00:40.7]} 32... Ref6 {[%clk 0:00:25.1]} 33. Re2 {[%clk
0:00:39.4]} 33... Qxd7 {[%clk 0:00:25.1]} 0-1

[Event "Late-Titled-Tuesday-Blitz-July-09-2024"]
[Site "Chess.com"]
[Date "2024.07.09"]
[Round "6"]
[White "dodorox"]
[Black "JavierRuizVazquez"]
[Result "1/2-1/2"]
[WhiteElo "2191"]
[BlackElo "2410"]
[TimeControl "180+1"]
[EndTime "15:04:09 PDT"]
[Termination "Game drawn by agreement"]

1. d4 {[%clk 0:03:00.9]} 1... Nf6 {[%clk 0:02:59.6]} 2. c4 {[%clk 0:03:01]} 2...
g6 {[%clk 0:02:59.4]} 3. Nc3 {[%clk 0:03:01.3]} 3... d5 {[%clk 0:02:59.3]} 4.
Bf4 {[%clk 0:03:01.4]} 4... Bg7 {[%clk 0:02:57.8]} 5. Rc1 {[%clk 0:03:01.5]}
5... c6 {[%clk 0:02:56.4]} 6. e3 {[%clk 0:02:54.1]} 6... O-O {[%clk 0:02:56]} 7.
Nf3 {[%clk 0:02:53]} 7... a6 {[%clk 0:02:41.2]} 8. cxd5 {[%clk 0:02:39.6]} 8...
Nxd5 {[%clk 0:02:40.4]} 9. Nxd5 {[%clk 0:02:30.7]} 9... Qxd5 {[%clk 0:02:41.3]}
10. Bc4 {[%clk 0:02:29.4]} 10... Qa5+ {[%clk 0:02:38.4]} 11. Qd2 {[%clk
0:02:26.8]} 11... Qh5 {[%clk 0:02:38.9]} 12. O-O {[%clk 0:02:16.4]} 12... Bg4
{[%clk 0:02:37.5]} 13. Be2 {[%clk 0:02:15.4]} 13... Nd7 {[%clk 0:02:15.9]} 14.
h3 {[%clk 0:02:13.7]} 14... Bxf3 {[%clk 0:02:05.7]} 15. Bxf3 {[%clk 0:02:14.6]}
15... Qb5 {[%clk 0:02:06.2]} 16. Bg3 {[%clk 0:01:54.9]} 16... Rfd8 {[%clk
0:02:02]} 17. Qc2 {[%clk 0:01:50.7]} 17... Rac8 {[%clk 0:01:52.8]} 18. b3 {[%clk
0:01:46]} 18... e5 {[%clk 0:01:43.9]} 19. dxe5 {[%clk 0:01:27.5]} 19... Nxe5
{[%clk 0:01:38.5]} 20. Be2 {[%clk 0:01:23.7]} 20... Qa5 {[%clk 0:01:35.1]} 21.
Rfd1 {[%clk 0:01:16.8]} 21... Rxd1+ {[%clk 0:01:33.8]} 22. Rxd1 {[%clk
0:01:16.9]} 22... Rd8 {[%clk 0:01:33.2]} 23. Rxd8+ {[%clk 0:01:08.3]} 23... Qxd8
{[%clk 0:01:34.1]} 24. Bxe5 {[%clk 0:01:07]} 24... Bxe5 {[%clk 0:01:33.6]} 25.
Qd1 {[%clk 0:01:05.7]} 25... Qe7 {[%clk 0:01:29.8]} 26. g3 {[%clk 0:00:50.8]}
26... Kg7 {[%clk 0:01:28.1]} 27. Kg2 {[%clk 0:00:50.5]} 27... h5 {[%clk
0:01:22.2]} 28. h4 {[%clk 0:00:48.6]} 28... Bf6 {[%clk 0:00:58.8]} 29. Bf3
{[%clk 0:00:46.5]} 29... Qe6 {[%clk 0:00:54.8]} 30. Qd3 {[%clk 0:00:43.2]} 30...
Be7 {[%clk 0:00:53.8]} 31. Qe4 {[%clk 0:00:41.7]} 31... Qxe4 {[%clk 0:00:47.6]}
32. Bxe4 {[%clk 0:00:42.6]} 32... Kf6 {[%clk 0:00:48.5]} 33. Kf3 {[%clk
0:00:41.9]} 33... Ke5 {[%clk 0:00:48.4]} 34. Bd3 {[%clk 0:00:41.5]} 34... Kd5
{[%clk 0:00:41.7]} 35. Bc4+ {[%clk 0:00:41]} 35... Ke5 {[%clk 0:00:37.4]} 36.
Bxf7 {[%clk 0:00:40.2]} 36... Kf6 {[%clk 0:00:38]} 1/2-1/2

[Event "Late-Titled-Tuesday-Blitz-July-09-2024"]
[Site "Chess.com"]
[Date "2024.07.09"]
[Round "6"]
[White "Crazy_girl99"]
[Black "malakismayil"]
[Result "1-0"]
[WhiteElo "2684"]
[BlackElo "2525"]
[TimeControl "180+1"]
[EndTime "15:04:10 PDT"]
[Termination "Crazy_girl99 won by checkmate"]

1. e4 {[%clk 0:03:00.9]} 1... e5 {[%clk 0:02:57.3]} 2. Nf3 {[%clk 0:03:01]} 2...
Nc6 {[%clk 0:02:57.8]} 3. Bb5 {[%clk 0:03:01.1]} 3... a6 {[%clk 0:02:57.8]} 4.
Ba4 {[%clk 0:03:01.5]} 4... Nf6 {[%clk 0:02:58.4]} 5. O-O {[%clk 0:03:01.4]}
5... b5 {[%clk 0:02:59.1]} 6. Bb3 {[%clk 0:03:01.3]} 6... Be7 {[%clk 0:03:00]}
7. Re1 {[%clk 0:03:01]} 7... O-O {[%clk 0:02:59.7]} 8. c3 {[%clk 0:03:01.6]}
8... d6 {[%clk 0:02:59.7]} 9. h3 {[%clk 0:03:00.2]} 9... Bb7 {[%clk 0:02:57.5]}
10. d4 {[%clk 0:02:59.1]} 10... Re8 {[%clk 0:02:53.7]} 11. Nbd2 {[%clk
0:02:59.3]} 11... Bf8 {[%clk 0:02:53.5]} 12. a4 {[%clk 0:02:59.4]} 12... Na5
{[%clk 0:02:43.2]} 13. Bc2 {[%clk 0:02:58.4]} 13... c5 {[%clk 0:02:39.8]} 14. d5
{[%clk 0:02:56.1]} 14... g6 {[%clk 0:02:19.8]} 15. b3 {[%clk 0:02:55]} 15... b4
{[%clk 0:01:59.6]} 16. Bb2 {[%clk 0:02:52.6]} 16... Bc8 {[%clk 0:01:55.7]} 17.
Bd3 {[%clk 0:02:46.7]} 17... Bd7 {[%clk 0:01:47.1]} 18. Bf1 {[%clk 0:02:43.8]}
18... Bh6 {[%clk 0:01:44.2]} 19. Rc1 {[%clk 0:02:41.9]} 19... Rc8 {[%clk
0:01:41.5]} 20. Bxa6 {[%clk 0:02:41]} 20... Rb8 {[%clk 0:01:40.9]} 21. cxb4
{[%clk 0:02:33.5]} 21... cxb4 {[%clk 0:01:41.8]} 22. Bf1 {[%clk 0:02:25.1]}
22... Nh5 {[%clk 0:01:39.4]} 23. g3 {[%clk 0:02:23.3]} 23... Ng7 {[%clk
0:01:09.4]} 24. Rc2 {[%clk 0:02:19.5]} 24... f5 {[%clk 0:01:09]} 25. Bc1 {[%clk
0:02:16.4]} 25... fxe4 {[%clk 0:00:50.9]} 26. Nxe4 {[%clk 0:02:17.3]} 26... Bxc1
{[%clk 0:00:50]} 27. Rxc1 {[%clk 0:02:18.2]} 27... Bf5 {[%clk 0:00:46.8]} 28.
Nfd2 {[%clk 0:02:09.9]} 28... Rf8 {[%clk 0:00:37.6]} 29. h4 {[%clk 0:02:06.3]}
29... Qd7 {[%clk 0:00:33.6]} 30. Qe2 {[%clk 0:01:58.6]} 30... Bxe4 {[%clk
0:00:25.9]} 31. Qxe4 {[%clk 0:01:59.5]} 31... Qf7 {[%clk 0:00:23.6]} 32. f3
{[%clk 0:01:50.7]} 32... Nf5 {[%clk 0:00:24]} 33. Kh2 {[%clk 0:01:50]} 33... Nd4
{[%clk 0:00:23.4]} 34. Re3 {[%clk 0:01:47.6]} 34... Rbc8 {[%clk 0:00:18.1]} 35.
Rxc8 {[%clk 0:01:42.5]} 35... Rxc8 {[%clk 0:00:19]} 36. Bh3 {[%clk 0:01:34.2]}
36... Rc2 {[%clk 0:00:18.7]} 37. Rd3 {[%clk 0:01:30.2]} 37... Rxd2+ {[%clk
0:00:18.1]} 38. Rxd2 {[%clk 0:01:28.9]} 38... Nxf3+ {[%clk 0:00:18.3]} 39. Kg2
{[%clk 0:01:27.9]} 39... Nxd2 {[%clk 0:00:18.9]} 40. Qd3 {[%clk 0:01:28.4]}
40... Ndxb3 {[%clk 0:00:17.9]} 41. Be6 {[%clk 0:01:28.1]} 41... Nc5 {[%clk
0:00:12.6]} 42. Bxf7+ {[%clk 0:01:28.4]} 42... Kxf7 {[%clk 0:00:12.8]} 43. Qb5
{[%clk 0:01:29]} 43... Nab7 {[%clk 0:00:12.3]} 44. Qxb4 {[%clk 0:01:27.7]} 44...
e4 {[%clk 0:00:11.3]} 45. a5 {[%clk 0:01:27.5]} 45... Nxa5 {[%clk 0:00:10.4]}
46. Qxa5 {[%clk 0:01:27.6]} 46... Kf6 {[%clk 0:00:11]} 47. Qc3+ {[%clk 0:01:27]}
47... Kf5 {[%clk 0:00:11.1]} 48. g4+ {[%clk 0:01:25.3]} 48... Kxg4 {[%clk
0:00:10.9]} 49. Qg3+ {[%clk 0:01:25.9]} 49... Kf5 {[%clk 0:00:10.1]} 50. Qg5#
{[%clk 0:01:26.5]} 1-0

[Event "Late-Titled-Tuesday-Blitz-July-09-2024"]
[Site "Chess.com"]
[Date "2024.07.09"]
[Round "6"]
[White "Michalczak"]
[Black "EternalNight8"]
[Result "1-0"]
[WhiteElo "2507"]
[BlackElo "2372"]
[TimeControl "180+1"]
[EndTime "15:04:10 PDT"]
[Termination "Michalczak won by resignation"]

1. e4 {[%clk 0:03:00.9]} 1... c5 {[%clk 0:02:59.6]} 2. c3 {[%clk 0:03:00.3]}
2... Nf6 {[%clk 0:02:58.9]} 3. e5 {[%clk 0:03:00.5]} 3... Nd5 {[%clk 0:02:59.4]}
4. Nf3 {[%clk 0:03:00.2]} 4... Nc6 {[%clk 0:02:57.3]} 5. d4 {[%clk 0:03:00.2]}
5... cxd4 {[%clk 0:02:56]} 6. Bc4 {[%clk 0:03:00.6]} 6... Nb6 {[%clk 0:02:55.9]}
7. Bb3 {[%clk 0:03:00.8]} 7... d5 {[%clk 0:02:56.5]} 8. exd6 {[%clk 0:03:00.8]}
8... Qxd6 {[%clk 0:02:57.1]} 9. O-O {[%clk 0:03:00.9]} 9... dxc3 {[%clk
0:02:56.9]} 10. Qe2 {[%clk 0:02:52.8]} 10... e6 {[%clk 0:02:52.5]} 11. Nxc3
{[%clk 0:02:48.7]} 11... Be7 {[%clk 0:02:47.5]} 12. Nb5 {[%clk 0:02:44.7]} 12...
Qb8 {[%clk 0:02:46.8]} 13. g3 {[%clk 0:02:43.7]} 13... Bd6 {[%clk 0:02:36.9]}
14. Rd1 {[%clk 0:02:40.3]} 14... Bc7 {[%clk 0:02:35.6]} 15. Nxc7+ {[%clk
0:02:14.1]} 15... Qxc7 {[%clk 0:02:36.5]} 16. Bf4 {[%clk 0:02:13.6]} 16... Qe7
{[%clk 0:02:30.1]} 17. Bd6 {[%clk 0:02:06.2]} 17... Qf6 {[%clk 0:02:30]} 18.
Rac1 {[%clk 0:02:02.2]} 18... Bd7 {[%clk 0:02:28]} 19. Rc5 {[%clk 0:01:42]}
19... h5 {[%clk 0:02:21.3]} 20. h4 {[%clk 0:01:40.6]} 20... O-O-O {[%clk
0:01:36.3]} 21. Ne5 {[%clk 0:01:39.7]} 21... g5 {[%clk 0:01:23.4]} 22. Nxc6
{[%clk 0:01:34.2]} 22... Bxc6 {[%clk 0:01:23.5]} 23. Rxc6+ {[%clk 0:01:34.4]}
23... bxc6 {[%clk 0:01:15.7]} 24. Qa6+ {[%clk 0:01:33.5]} 24... Kd7 {[%clk
0:01:16.1]} 25. Be5+ {[%clk 0:01:10.6]} 25... Ke7 {[%clk 0:01:15.8]} 26. Bxf6+
{[%clk 0:01:09.9]} 26... Kxf6 {[%clk 0:01:16.7]} 27. Rxd8 {[%clk 0:01:06.5]}
27... Rxd8 {[%clk 0:01:17.6]} 28. Qxa7 {[%clk 0:01:06.3]} 28... Nd5 {[%clk
0:01:15.8]} 29. hxg5+ {[%clk 0:01:03.5]} 29... Kxg5 {[%clk 0:01:15.9]} 30. Qxf7
{[%clk 0:01:01.1]} 30... e5 {[%clk 0:01:07.7]} 31. a4 {[%clk 0:00:52.2]} 31...
Rd6 {[%clk 0:00:57.7]} 32. a5 {[%clk 0:00:50.5]} 32... Rf6 {[%clk 0:00:56]} 33.
Qg7+ {[%clk 0:00:48.6]} 33... Rg6 {[%clk 0:00:55.7]} 34. Qxe5+ {[%clk
0:00:48.3]} 34... Kh6 {[%clk 0:00:55.3]} 35. a6 {[%clk 0:00:44.7]} 35... Nb6
{[%clk 0:00:54.1]} 36. Qh8+ {[%clk 0:00:41]} 36... Kg5 {[%clk 0:00:54.5]} 37.
Qd8+ {[%clk 0:00:41.4]} 37... Kg4 {[%clk 0:00:52.6]} 38. Qh4+ {[%clk 0:00:33.7]}
38... Kf3 {[%clk 0:00:48.3]} 39. Qxh5+ {[%clk 0:00:27.3]} 39... Ke4 {[%clk
0:00:49.2]} 40. Qxg6+ {[%clk 0:00:26.7]} 1-0

[Event "Late-Titled-Tuesday-Blitz-July-09-2024"]
[Site "Chess.com"]
[Date "2024.07.09"]
[Round "6"]
[White "osielchesslover2011"]
[Black "sammartin99"]
[Result "0-1"]
[WhiteElo "2195"]
[BlackElo "2425"]
[TimeControl "180+1"]
[EndTime "15:04:13 PDT"]
[Termination "sammartin99 won on time"]

1. e4 {[%clk 0:03:00.9]} 1... c5 {[%clk 0:02:53.6]} 2. Nf3 {[%clk 0:03:00.1]}
2... Nc6 {[%clk 0:02:52.9]} 3. Nc3 {[%clk 0:02:58.7]} 3... e5 {[%clk 0:02:51.7]}
4. Nd5 {[%clk 0:02:56.4]} 4... Nf6 {[%clk 0:02:47.9]} 5. Nxf6+ {[%clk
0:02:49.6]} 5... Qxf6 {[%clk 0:02:48.8]} 6. c3 {[%clk 0:02:49.8]} 6... d6 {[%clk
0:02:37.3]} 7. h3 {[%clk 0:02:46.7]} 7... Be7 {[%clk 0:02:28.1]} 8. Bb5 {[%clk
0:02:44.4]} 8... O-O {[%clk 0:02:26.3]} 9. d4 {[%clk 0:02:19.6]} 9... cxd4
{[%clk 0:02:23.3]} 10. Bxc6 {[%clk 0:02:10.4]} 10... bxc6 {[%clk 0:02:22.6]} 11.
cxd4 {[%clk 0:02:11.1]} 11... Ba6 {[%clk 0:02:06.8]} 12. dxe5 {[%clk 0:01:49]}
12... dxe5 {[%clk 0:02:07.7]} 13. Bg5 {[%clk 0:01:04.2]} 13... Qg6 {[%clk
0:02:06.4]} 14. Bxe7 {[%clk 0:00:47.6]} 14... Qxe4+ {[%clk 0:02:05.9]} 15. Kd2
{[%clk 0:00:42]} 15... Rfd8+ {[%clk 0:02:02.2]} 16. Bxd8 {[%clk 0:00:32.4]}
16... Rxd8+ {[%clk 0:02:03.1]} 17. Kc1 {[%clk 0:00:26]} 17... Qf4+ {[%clk
0:02:00.5]} 18. Nd2 {[%clk 0:00:20.5]} 18... Bd3 {[%clk 0:01:54.9]} 19. Qf3
{[%clk 0:00:13.4]} 19... Qd4 {[%clk 0:01:45.2]} 20. Qe3 {[%clk 0:00:12.2]} 20...
Qb4 {[%clk 0:01:37.5]} 21. a3 {[%clk 0:00:11.4]} 21... Qd6 {[%clk 0:01:20.5]}
22. b3 {[%clk 0:00:08.8]} 22... f5 {[%clk 0:01:15.7]} 23. Kb2 {[%clk 0:00:07.8]}
23... f4 {[%clk 0:01:16.2]} 24. Qxa7 {[%clk 0:00:07.5]} 24... c5 {[%clk
0:01:15.9]} 25. Rhd1 {[%clk 0:00:06]} 25... Qd4+ {[%clk 0:01:16.1]} 26. Ka2
{[%clk 0:00:06.3]} 26... Qc3 {[%clk 0:01:11.2]} 27. Rac1 {[%clk 0:00:04.2]}
27... Bc2 {[%clk 0:01:11.4]} 28. Nb1 {[%clk 0:00:03.2]} 28... Qxb3+ {[%clk
0:01:11.3]} 29. Ka1 {[%clk 0:00:02.7]} 29... Bxd1 {[%clk 0:01:02.1]} 30. Qxc5
{[%clk 0:00:01.9]} 30... Be2 {[%clk 0:00:53.7]} 0-1

[Event "Late-Titled-Tuesday-Blitz-July-09-2024"]
[Site "Chess.com"]
[Date "2024.07.09"]
[Round "6"]
[White "lluiss"]
[Black "Giorno"]
[Result "0-1"]
[WhiteElo "2204"]
[BlackElo "2525"]
[TimeControl "180+1"]
[EndTime "15:04:13 PDT"]
[Termination "Giorno won on time"]

1. Nf3 {[%clk 0:03:00.9]} 1... d6 {[%clk 0:02:59]} 2. d4 {[%clk 0:03:00.2]} 2...
Nf6 {[%clk 0:02:59.2]} 3. g3 {[%clk 0:03:00.2]} 3... Bf5 {[%clk 0:02:59.1]} 4.
Bg2 {[%clk 0:02:57.9]} 4... c6 {[%clk 0:02:58.9]} 5. O-O {[%clk 0:02:56.7]} 5...
h5 {[%clk 0:02:57.4]} 6. h4 {[%clk 0:02:54.8]} 6... Ne4 {[%clk 0:02:51]} 7. Nbd2
{[%clk 0:02:52]} 7... g6 {[%clk 0:02:49.3]} 8. Ng5 {[%clk 0:02:48.4]} 8... Nxg5
{[%clk 0:02:41.3]} 9. hxg5 {[%clk 0:02:47.5]} 9... h4 {[%clk 0:02:41.8]} 10. e4
{[%clk 0:02:44.3]} 10... Bc8 {[%clk 0:02:39.1]} 11. g4 {[%clk 0:02:19.3]} 11...
h3 {[%clk 0:02:35.2]} 12. Bf3 {[%clk 0:02:17]} 12... e5 {[%clk 0:02:31]} 13. Nb3
{[%clk 0:02:05.4]} 13... Bg7 {[%clk 0:02:28.2]} 14. dxe5 {[%clk 0:02:02.2]}
14... Bxe5 {[%clk 0:02:28.2]} 15. Kh1 {[%clk 0:01:50.3]} 15... Nd7 {[%clk
0:02:16.3]} 16. Be2 {[%clk 0:01:49.6]} 16... Bg7 {[%clk 0:02:09.6]} 17. f4
{[%clk 0:01:49.2]} 17... Qc7 {[%clk 0:02:04.7]} 18. Be3 {[%clk 0:01:41.8]} 18...
c5 {[%clk 0:01:56.5]} 19. f5 {[%clk 0:01:18.3]} 19... Ne5 {[%clk 0:01:50.6]} 20.
f6 {[%clk 0:01:02.1]} 20... Bf8 {[%clk 0:01:49.8]} 21. Bf4 {[%clk 0:00:58.9]}
21... Bd7 {[%clk 0:01:47.7]} 22. Bxe5 {[%clk 0:00:50.5]} 22... dxe5 {[%clk
0:01:48.6]} 23. Bc4 {[%clk 0:00:48.5]} 23... Bc6 {[%clk 0:01:44.4]} 24. Qe2
{[%clk 0:00:46.8]} 24... O-O-O {[%clk 0:01:35.5]} 25. Rad1 {[%clk 0:00:46.2]}
25... Rd4 {[%clk 0:01:27.5]} 26. Rxd4 {[%clk 0:00:41.5]} 26... exd4 {[%clk
0:01:28.4]} 27. Nd2 {[%clk 0:00:25.7]} 27... Bd6 {[%clk 0:01:23.9]} 28. Bd3
{[%clk 0:00:19.9]} 28... Bf4 {[%clk 0:01:19.5]} 29. Rf3 {[%clk 0:00:18.7]} 29...
h2 {[%clk 0:01:13.8]} 30. Nf1 {[%clk 0:00:18.4]} 30... Re8 {[%clk 0:01:06]} 31.
Qf2 {[%clk 0:00:15.8]} 31... Bxg5 {[%clk 0:01:02]} 32. Nxh2 {[%clk 0:00:12.1]}
32... c4 {[%clk 0:01:00.4]} 0-1